Cogmind - Beta 13 @@@ ROGUE MODE // 2024.05.15 @ 23:52:55 Player: SaltHuntress Result: Destroyed by P-60 Hacker with Shock Rifle Performance ------------- Evolutions (2) 1000 Regions Visited (5) 1000 Robots Destroyed (38) 190 Value Destroyed (1103) 1103 Prototype IDs (3) 60 Alien Tech Used (0) 0 Bonus (204) 204 TOTAL SCORE: 3557 Bonus ------- High Alert Combat Kills 4 Entered Garrisons 200 Cogmind --------- Core Integrity 0/550 Matter 84/300 Energy 64/100 System Corruption 5% Temperature Cool (0) Movement Flying (40) Location -8/Garrison Parts ------- > --- POWER (1) -------- (None) > --- PROPULSION (4) --- Flight Unit > --- UTILITY (4) ------ Improved Signal Interpreter > --- WEAPON (2) ------- Light Assault Rifle > --- INVENTORY (5) ---- Cryofiber Web Improved Propulsion Shielding Field Recycling Unit (0) Peak State ------------ > --- POWER ------------ Ion Engine > --- PROPULSION ------- Advanced Treads > --- UTILITY ---------- Improved Sensor Array Improved Signal Interpreter Advanced Targeting Computer Recoil Stabilizer > --- WEAPON ----------- Shock Rifle Improved Grenade Launcher > --- INVENTORY -------- Cryofiber Web Improved Propulsion Shielding Field Recycling Unit Shock Rifle [Rating: 23] Favorites ----------- Power Ion Engine Engine Ion Engine Power Core Light Nuclear Core Propulsion Hover Unit Treads Advanced Treads Leg Aluminum Leg Hover Unit Hover Unit Flight Unit Flight Unit Utility Signal Interpreter Device Sensor Array Storage Small Storage Unit Processor Signal Interpreter Weapon Light Cannon Energy Gun Particle Gun Energy Cannon Advanced Beam Cannon Ballistic Gun Light Assault Rifle Ballistic Cannon Light Cannon Launcher Improved Grenade Launcher Slashing Weapon Mining Claw Build | -11 -10 -9 -9 -8 -8 ------- Run | Yrd Mat Mat Min Mat Gar Slots Evolved 4 | . . 2 . 2 . Power . | . . . . . . Propulsion 2 | . . 2 . . . Utility 2 | . . . . 2 . Weapon . | . . . . . . Parts Attached 55 | 6 9 14 . 18 8 Power 4 | 1 . 1 . 1 1 Engine 3 | 1 . 1 . 1 . Core 1 | . . . . . 1 Reactor . | . . . . . . Propulsion 21 | 2 4 8 . 3 4 Treads 2 | . . . . 2 . Leg 8 | 2 4 1 . . 1 Wheel . | . . . . . . Hover 8 | . . 7 . 1 . Flight 3 | . . . . . 3 Utility 10 | 1 3 . . 6 . Device 5 | . 1 . . 4 . Storage 1 | 1 . . . . . Processor 4 | . 2 . . 2 . Hackware . | . . . . . . Protection . | . . . . . . Artifact . | . . . . . . Weapon 20 | 2 2 5 . 8 3 Energy Gun 4 | . . . . 3 1 Energy Cannon 1 | . . . . 1 . Ballistic Gun 4 | 2 1 . . . 1 Ballistic Cannon 5 | . . 3 . 2 . Launcher 4 | . . 1 . 2 1 Special Weapon . | . . . . . . Impact Weapon . | . . . . . . Slashing Weapon 2 | . 1 1 . . . Piercing Weapon . | . . . . . . Special Melee Weapon . | . . . . . . Unidentified Prototypes 1 | . . . . 1 . Corrupted Parts 1 | . . . . 1 . System Corruption 5 | . . . . 5 . Parts Lost 18 | . 1 1 1 4 11 Power 2 | . . . . 1 1 Propulsion 8 | . . 1 1 1 5 Utility 3 | . . . . . 3 Weapon 5 | . 1 . . 2 2 Highest Loss Streak 7 | . 1 1 1 3 7 To Critical Strikes . | . . . . . . Average Slot Usage (%) 88 | . 98 96 94 84 61 Engine 9 | . 14 11 11 8 . Treads 1 | . . . . . 7 Leg 10 | . 28 9 . . 3 Hover 16 | . . 30 39 25 . Flight 1 | . . . . . 6 Device 13 | . 9 11 11 21 16 Storage 1 | . 4 . . . . Processor 12 | . 13 11 11 11 17 Ballistic Gun 8 | . 27 . . . 3 Ballistic Cannon 9 | . . 19 22 11 . Launcher 1 | . . 1 . 2 . Naked Turns . | . . . . . . Heaviest Build 17 | 13 13 13 12 17 10 Greatest Support 42 | 20 20 30 24 42 22 Greatest Overweight (x) 3 | . . 1 . 2 3 Average Overweight (x) . | . . . . . . Largest Inventory Capacity 8 | 8 8 5 5 5 5 Average Capacity 5 | 7 5 5 5 5 5 Most Carried 8 | 2 8 5 5 5 4 Average Carried 4 | 1 5 4 4 4 3 Final Capacity 8 | 8 5 5 5 5 5 Final Carried 5 | 2 4 4 5 4 3 Class Distribution -------------------- 90% | Mutant 9% | Scavenger-Mutant Dominant Class ---------------- Mutant | -10/Materials Mutant | -9/Materials Mutant | -9/Mines Mutant | -8/Materials Scavenger-Mutant | -8/Garrison Resources | -11 -10 -9 -9 -8 -8 ----------- Run | Yrd Mat Mat Min Mat Gar Matter Collected 1327 | 256 472 149 179 169 102 Remotely 11 | . . . . 11 . Salvage Created 911 | . 302 214 2 276 117 Parts 72 | . 17 17 . 29 9 Haulers Intercepted 1 | . . 1 . . . Recyclers Shooed . | . . . . . . Parts Field Recycled . | . . . . . . Retrieved Matter . | . . . . . . Parts Self-Destructed . | . . . . . . Prevented . | . . . . . . Kills | -11 -10 -9 -9 -8 -8 ------- Run | Yrd Mat Mat Min Mat Gar Combat Hostiles Destroyed 32 | . 6 7 1 13 5 Guns 11 | . 6 . . 2 3 Cannons 9 | . . 1 1 7 . AOE 12 | . . 6 . 4 2 Classes Destroyed 8 | . 2 2 1 3 . Hauler 1 | . . 1 . . . Watcher 5 | . 2 2 . 1 . Swarmer 9 | . . . . 7 2 Cutter 2 | . . . . 2 . Grunt 17 | . 6 6 . 2 3 Brawler 1 | . . 1 . . . Sentry 2 | . . . . 2 . Demolisher 1 | . . . 1 . . Best Kill Streak 8 | . 3 8 1 5 3 Combat Bots Only 7 | . 2 7 1 5 3 Max Kills in Single Turn 2 | . 1 2 1 2 1 Gunslinging . | . . . . . . Exploded 2 | . . 1 . 2 1 Melee . | . . . . . . Uniques/NPCs Destroyed . | . . . . . . Combat | -11 -10 -9 -9 -8 -8 -------- Run | Yrd Mat Mat Min Mat Gar Hostile Shots Fired 218 | . 31 20 4 61 102 Missed 67 | . 10 10 1 16 30 Damage Taken 2290 | . 327 195 57 717 994 Core 590 | . 16 19 . 140 415 Absorbed by Shields 58 | . . . . 15 43 Core Remaining (%) 96 | 100 93 . 95 . . Volleys Fired 103 | . 27 17 1 37 21 Largest 2 | . 2 2 2 2 2 Hottest 103 | . 40 70 70 103 85 Shots Fired 178 | . 54 32 2 62 28 Gun 95 | . 54 . . 15 26 Cannon 71 | . . 26 2 43 . Launcher 12 | . . 6 . 4 2 Special . | . . . . . . Kinetic 126 | . 54 26 2 37 7 Thermal 25 | . . . . 6 19 Explosive 12 | . . 6 . 4 2 Electromagnetic 15 | . . . . 15 . Robot Hit Streak 16 | . 11 4 1 14 16 Robot Miss Streak 5 | . 2 3 1 5 2 Penetration Max . | . . . . . . Secondary Targets 1 | . 1 . . . . Max Gunslinging Chain 1 | . 1 . . . . Shots Hit Robots 110 | . 39 15 1 38 17 Core Hits 61 | . 19 11 1 19 11 Critical Kills . | . . . . . . Critical Parts Destroyed . | . . . . . . Critical Strikes 2 | . . 2 . . . Blast 2 | . . 2 . . . Melee Attacks 1 | . . 1 . . . Impact . | . . . . . . Slashing 1 | . . 1 . . . Piercing . | . . . . . . Sneak Attacks . | . . . . . . Combat Hostiles . | . . . . . . Follow-up Attacks . | . . . . . . Damage Inflicted 2825 | . 371 1003 18 925 508 Guns 848 | . 371 . . 237 240 Cannons 646 | . . 221 18 407 . Explosions 1330 | . . 782 . 280 268 Melee . | . . . . . . Ramming 1 | . . . . 1 . Kinetic 989 | . 371 221 18 345 34 Thermal 590 | . . 322 . 62 206 Explosive 1008 | . . 460 . 280 268 Electromagnetic 237 | . . . . 237 . Impact . | . . . . . . Slashing . | . . . . . . Piercing . | . . . . . . Highest Corruption 5 | . . . . 5 5 Average Corruption 5 | . . . . 5 5 Corruption Purged . | . . . . . . Corruption Blocked . | . . . . . . Effects 10 | . . . . . 10 Message Errors 1 | . . . . . 1 Matter Fused 3 | . . . . . 3 Heat Flow Errors 1 | . . . . . 1 Energy Discharges 1 | . . . . . 1 Parts Fused 1 | . . . . . 1 Data Loss (minor) 3 | . . . . . 3 Overload Shots . | . . . . . . Overflow Damage 143 | . . 104 . 13 26 Projectiles 13 | . . . . 13 . Explosions 130 | . . 104 . . 26 Melee . | . . . . . . Knockbacks 4 | . . 1 . 3 . Impact . | . . . . . . Kinetic 4 | . . 1 . 3 . Secondary . | . . . . . . Self-Inflicted Damage 239 | . . 59 . 127 53 Shots 7 | . . 2 . 3 2 Rammed 1 | . . . . 1 . Targets Rammed 1 | . . . . 1 . Kicked . | . . . . . . Crushed . | . . . . . . Highest Temperature 200 | . 36 84 9 142 200 Average Temperature 37 | . 13 28 6 35 60 Received Heat Transfer 744 | . 180 63 . 135 366 Siege Activations . | . . . . . . Robots Corrupted . | . . . . . . Combat Hostiles . | . . . . . . Parts Fried 2 | . . . . 2 . Impact Corruptions . | . . . . . . Robots Melted . | . . . . . . Combat Hostiles . | . . . . . . Parts Melted . | . . . . . . Heat Transferred 792 | . . 200 . 111 481 Parts Sabotaged . | . . . . . . Parts Stolen . | . . . . . . Parts Stripped . | . . . . . . Power Chain Reactions . | . . . . . . Alert | -11 -10 -9 -9 -8 -8 ------- Run | Yrd Mat Mat Min Mat Gar Peak Influence 410 | . 195 306 143 410 329 Initial 188 | . . 4 118 55 188 Average 134 | . 82 84 127 208 235 Maximum Alert Level 2 | . . 1 . 2 1 Low Security (%) 75 | 100 100 88 100 45 39 Level 1 21 | . . 11 . 39 60 Level 2 3 | . . . . 14 . Level 3 . | . . . . . . Level 4 . | . . . . . . Level 5 . | . . . . . . High Security . | . . . . . . Max Security . | . . . . . . Squads Dispatched 12 | . 2 6 . 4 . Investigation 7 | . 2 4 . 1 . Extermination . | . . . . . . Reinforcement 3 | . . 2 . 1 . Assault . | . . . . . . Garrison 2 | . . . . 2 . Intercept . | . . . . . . Searches Triggered . | . . . . . . Construction Impeded 1 | . . 1 . . . Haulers Reinforced . | . . . . . . Active Scanning Responses . | . . . . . . Cargo Convoy Interrupts . | . . . . . . Stealth | -11 -10 -9 -9 -8 -8 --------- Run | Yrd Mat Mat Min Mat Gar Distress Signals 8 | . 1 4 . 3 . Communications Jammed . | . . . . . . Distress Signals . | . . . . . . Times Spotted 76 | . 9 25 3 20 19 Peak Tracking Total 12 | . 3 7 2 7 12 Tactical Retreats 8 | . 1 5 . 2 . Traps | -11 -10 -9 -9 -8 -8 ------- Run | Yrd Mat Mat Min Mat Gar Traps Triggered 4 | . 2 1 . . 1 Indirectly . | . . . . . . Trap Hack Attempts . | . . . . . . Triggered . | . . . . . . Disarmed . | . . . . . . Reprogrammed . | . . . . . . Reused . | . . . . . . Traps Extracted . | . . . . . . Installed . | . . . . . . Triggered . | . . . . . . Objects Rigged 3 | . 3 . . . . Machines | -11 -10 -9 -9 -8 -8 ---------- Run | Yrd Mat Mat Min Mat Gar Machines Disabled 4 | . . 2 . 2 . Max in Single Turn 1 | . . 1 . 1 . Machines Repaired . | . . . . . . Machines Dismantled . | . . . . . . Machines Sabotaged . | . . . . . . Overloaded Fab Kills . | . . . . . . Hacking | -11 -10 -9 -9 -8 -8 --------- Run | Yrd Mat Mat Min Mat Gar Machines Accessed 14 | . 4 6 . 3 1 Terminals 9 | . 3 4 . 1 1 Fabricators . | . . . . . . Repair Stations . | . . . . . . Recycling Units 3 | . 1 2 . . . Scanalyzers 1 | . . . . 1 . Garrison Access 1 | . . . . 1 . Total Hacks 41 | . 9 22 . 8 2 Successful 18 | . 4 7 . 7 . Failed 23 | . 5 15 . 1 2 Catastrophic 4 | . 1 3 . . . Database Lockouts . | . . . . . . Manual 12 | . 7 3 . 1 1 Terminals 26 | . 7 15 . 2 2 Fabricators . | . . . . . . Repair Stations . | . . . . . . Recycling Units 9 | . 2 7 . . . Scanalyzers 4 | . . . . 4 . Garrison Access 2 | . . . . 2 . Terminal Hacks 7 | . 2 3 . 2 . Prototype ID Bank 1 | . . . . 1 . Emergency Access Points 1 | . 1 . . . . Locate Traps 3 | . 1 1 . 1 . Recall Investigation 1 | . . 1 . . . Zone Layout 1 | . . 1 . . . Fabricator Hacks . | . . . . . . Repair Station Hacks . | . . . . . . Recycling Unit Hacks 3 | . . 3 . . . Process 1 | . . 1 . . . Report Inventory 2 | . . 2 . . . Scanalyzer 4 | . . . . 4 . Insert Component 2 | . . . . 2 . Analyze 2 | . . . . 2 . Garrison Access Hacks 1 | . . . . 1 . Unlock Access 1 | . . . . 1 . Unauthorized Hacks 3 | . 2 1 . . . Terminals 1 | . 1 . . . . Detonate 1 | . 1 . . . . Fabricators . | . . . . . . Repair Stations . | . . . . . . Recycling Units 2 | . 1 1 . . . Monitor 2 | . 1 1 . . . Scanalyzers . | . . . . . . Garrison Access . | . . . . . . Data Cores Recovered . | . . . . . . Used . | . . . . . . Hacking Detections 14 | . 4 6 . 3 1 Full Trace Events 9 | . 3 4 . 1 1 Feedback Events . | . . . . . . Feedback Blocked . | . . . . . . Robot Schematics Acquired . | . . . . . . Robots Built . | . . . . . . Authchips . | . . . . . . Time . | . . . . . . Total Robot Build Rating . | . . . . . . Part Schematics Acquired 1 | . . . . 1 . Parts Built . | . . . . . . Authchips . | . . . . . . Time . | . . . . . . Total Part Build Rating . | . . . . . . Parts Repaired . | . . . . . . Time . | . . . . . . Parts Recycled . | . . . . . . Recycled Matter 56 | . . 56 . . . Retrieved Matter . | . . . . . . Retrieved Components . | . . . . . . Parts Scanalyzed 1 | . . . . 1 . Part Schematics Acquired 1 | . . . . 1 . Parts Damaged . | . . . . . . Bothacking | -11 -10 -9 -9 -8 -8 ------------ Run | Yrd Mat Mat Min Mat Gar Used RIF Installer . | . . . . . . Robots Hacked . | . . . . . . Non-combat . | . . . . . . Combat . | . . . . . . Robot Hacks Applied . | . . . . . . Relay Couplers Released . | . . . . . . Fabnet Peak Effective % . | . . . . . . Robots Rewired . | . . . . . . Allies Hacked . | . . . . . . Hacks Repelled . | . . . . . . Allies | -11 -10 -9 -9 -8 -8 -------- Run | Yrd Mat Mat Min Mat Gar Total Allies . | . . . . . . Largest Group . | . . . . . . Highest-Rated Group . | . . . . . . Highest-Rated Ally . | . . . . . . Total Orders . | . . . . . . Ally Attacks . | . . . . . . Total Damage . | . . . . . . Kills . | . . . . . . Allies Corrupted . | . . . . . . Allies Melted . | . . . . . . Intel | -11 -10 -9 -9 -8 -8 ------- Run | Yrd Mat Mat Min Mat Gar Robot Analysis Total . | . . . . . . Derelict Logs Recovered 2 | . . . 2 . . Drone Launches . | . . . . . . Drone Recoveries . | . . . . . . Exploration | -11 -10 -9 -9 -8 -8 ------------- Run | Yrd Mat Mat Min Mat Gar Turns Passed 2099 | 63 559 551 143 461 322 Spaces Moved 1923 | 46 332 671 223 439 212 Core 15 | 4 . . . . 11 Treads 103 | . . . . 19 84 Legs 526 | 42 332 123 . . 29 Wheels . | . . . . . . Hover 1191 | . . 548 223 420 . Flight 88 | . . . . . 88 Fastest Speed 40 | 50 120 48 48 48 40 Average Speed 76 | 113 120 61 49 62 102 Slowest Speed 200 | 120 120 120 52 180 200 Overloaded Moves . | . . . . . . Propulsion Burnouts . | . . . . . . Robots Hopped 2 | . . . . . 2 Cave-ins Triggered . | . . . . . . Exploration Rate (%) 33 | 4 37 38 47 28 48 Regions Visited 5 Branch Regions 1 Pre-discovered Areas 1 | . . . 1 . . Known Exits Taken 4 | . 1 1 1 1 . Unknown Exits Taken 1 | 1 . . . . . Scrap Searched 1 | . . . 1 . . Spaces Dug 1 | . . 1 . . . Terrain Destroyed 86 | . . 55 . 30 1 Melee 1 | . . 1 . . . Projectile 1 | . . . . 1 . AOE 84 | . . 54 . 29 1 Terrain Rammed . | . . . . . . Walls Destroyed . | . . . . . . Machines Disabled . | . . . . . . Actions | -11 -10 -9 -9 -8 -8 --------- Run | Yrd Mat Mat Min Mat Gar Total 2376 | 54 449 775 252 563 283 Wait 219 | . 64 57 28 48 22 Move 1914 | 45 331 670 222 438 208 Hop 2 | . . . . . 2 Pick Up 25 | 3 9 4 1 8 . Fast Attach 34 | 5 2 7 . 9 11 Attach 10 | 1 2 1 . 5 1 Detach 2 | . . 1 . 1 . Swap 15 | . 5 6 . 4 . Drop 32 | . 9 11 . 12 . Fire 103 | . 27 17 1 37 21 Melee 1 | . . 1 . . . Ram . | . . . . . . Kick . | . . . . . . Crush 1 | . . . . 1 . Escape Stasis 9 | . . . . . 9 Rewire 9 | . . . . . 9 Trap . | . . . . . . Miscellaneous . | . . . . . . Route ------- -11/Scrapyard -10/Materials -9/Materials -9/Mines (discovered 3 exits: *Mat x2 / *Exi) -8/Materials (discovered 3 exits: *Fac x2 / Gar) -8/Garrison History --------- Turn | Location | Event 20 | -11/Scrapyard | Discovered new exit (range 16) 64 | -11/Scrapyard | Entered Materials 299 | -10/Materials | Discovered new exit (range 16) 305 | -10/Materials | Build established: Mutant 622 | -10/Materials | Identified exit to Materials 623 | -10/Materials | Entered another Materials area 623 | -9/Materials | Evolved 2 slots: Propulsion x2 1137 | -9/Materials | Destroyed 7 combat bots 1170 | -9/Materials | Discovered new exit (range 7) 1173 | -9/Materials | Identified exit to Mines 1174 | -9/Materials | Entered Mines 1195 | -9/Mines | Met a Derelict bent on vengeance 1196 | -9/Mines | Assembled infested the area 1213 | -9/Mines | Deemed a non-threat by the Exiles lab entrance 1213 | -9/Mines | Discovered new exit (range 5) 1215 | -9/Mines | Identified exit to Exiles 1279 | -9/Mines | Discovered new exit (range 9) 1280 | -9/Mines | Learned 8 Materials zone layouts 1283 | -9/Mines | Identified exit to Materials 1287 | -9/Mines | Discovered exit to Materials (range 8) 1317 | -9/Mines | Entered Materials 1317 | -8/Materials | Evolved 2 slots: Utility x2 1318 | -8/Materials | Identified exit to Factory 1583 | -8/Materials | Discovered exit to Factory (range 15) 1604 | -8/Materials | Identified exit to Garrison 1778 | -8/Materials | Entered Garrison 1805 | -8/Garrison | Lost 3 parts (1p2w) 1904 | -8/Garrison | Triggered checkpoint 1951 | -8/Garrison | Lost 3 parts (2n1w) 1979 | -8/Garrison | Core integrity fell below 50% 2040 | -8/Garrison | Triggered checkpoint 2095 | -8/Garrison | Core integrity fell below 20% 2100 | -8/Garrison | Destroyed by P-60 Hacker with Shock Rifle Last Messages --------------- 02058_ Field strength at 40. 02068_ Stasis field depleted. 02069_ System corrupted: Component data lost. 02070_ Flight Unit destroyed. 02075_ Recoil Stabilizer destroyed. 02076_ Particle Gun destroyed. 02079_ Flight Unit destroyed. 02079_ Critical hit (Burn: +37). 02080_ Imp. Sensor Array destroyed. 02081_ Adv. Targeting Computer destroyed. 02086_ P-60 Hacker springs to life. 02088_ Aluminum Leg destroyed. 02089_ Acquired Relay Coupler [Swarmer]. 02089_ Relay Coupler [Swarmer] fries itself. 02092_ Acquired Relay Coupler [Swarmer]. 02092_ Relay Coupler [Swarmer] fries itself. 02094_ Acquired Relay Coupler [Cutter]. 02094_ Relay Coupler [Cutter] fries itself. 02097_ Acquired Relay Coupler [Duelist]. 02097_ Relay Coupler [Duelist] fries itself. Map ----- +----------------------------------------------------+ | | | | | | | | | | | ?????????????????????????????????????????????? | | ?????????????????????????????????????????????? | | ?????????????????????????????????????????????? | | ?????????????????????????????????????????????? | | ?????????????????????????????????????????????? | | ?????????????????????????????????????????????? | | ?????????????????????????????????????????????? | | ?????????????????????????????????????????????? | | ?????????????????????????????????????????????? | | ?????????????????????????????????????????????? | | ?????????????????????????????????????????????? | | ?????????????????????????????????????????????? | | ?????????????????????????????????????????????? | | ?????????????????????????????????????????????? | | ?????????????????????????????????????????????? | | ?????????????????????????????????????????????? | | ????????????????????######???????????????????? | | ????????????????????# + #???????????????????? | | ????????????????????# p# #???????????????????? | | ????????????????????##p# ####????????????????? | | ????????????????????#@gg +!!#????????????????? | | ????????????????????# p#g# #????????????????? | | ????????????????????#### #??#????????????????? | | ???????????????????????# #???????????????????? | | ???????????????????????# #???###?????????????? | | ???????????????????????# #?? #?????????????? | | ???????????????????????# ### ##### #?????? | | ???????????????????????# ?????? | | ???????????????????????# ?????? | | ???????????????????????# ###########????????? | | ???????????????????????# #??????????????????? | | ???????????????????????# #??????????????????? | | ??????????????########## ############++###### | | ?????????? | | ?????????? | | ?????????? | | ???????????#######################T####+### | | ?????????????????????????????????###??????# | | ??????????????????????????????????????????# | | ??????????????????????????????????????????# | | ??????????????????????????????????????????# | | ??????????????????????????????????????????# | | ??????????????????????????????????????????# | | ??????????????????????????????????????????# | | ??????????????????????????????????????????# | +----------------------------------------------------+ Best States ------------- Heat Dissipation 31 Energy Generation 14 Energy Capacity 250 Matter Stores 300 Matter Capacity 300 Sight Range 16 Robot Scan Range 15 Terrain Scan Density 10 Evasion (%) 62 Targeting Accuracy 8 Recoil Reduction 5 Item Schematics ----------------- Rocket Launcher | -8/Materials | Scanalyzed Robot Schematics ------------------ None Fabricated ------------ Nothing Alien Tech Used ----------------- None Achievements -------------- I Spy Let's See Who's Tougher Party Time True Hacker Challenges ------------ None Game ------ Seed AlphaHelicalTorch Manual? 0 Play Time 00:51:34 Cumulative 6.6 hours Start 2024.05.15 @ 23:00:55 End 2024.05.15 @ 23:52:55 Sessions 1 Manual Loads 0 Difficulty Rogue Special Mode None Game No. 5 Rogue 5 Adventurer 0 Explorer 0 Win Type - Total 0 Types 0/0/0/0/0/0/0/0/0 Lore% 5 Gallery% 10 Achievement% 10 Wizard Run 0 Options --------- Layout 1 ASCII 0 Keyboard 0 Movement Mouse Keybinds 0 Fullscreen 1 Font 32/SmallcapsGlow Map View 50x35 Zoom Use 0% Tactical HUD 1 Map Filters NONE Filters NONE Steam 1 RUN: 01c676e5-f36b-49d0-b5e9-5384b1b647b1